bitfinex/quotes_SOLUSD_20250422
["timestamp","ask_amount","ask_price","bid_price","bid_amount"]
[1745309660724,7.13102614,140.24,140.2,0.063]
[1745309660913,15.44977308,140.24,140.2,0.063]
[1745309661108,15.44977308,140.24,140.2,8.38174694]
[1745309661312,15.44887171,140.25,140.2,0.063]
[1745309661720,15.44887171,140.25,140.2,8.38174694]
[1745309663523,15.44887171,140.25,140.2,34.16406207]
[1745309663828,15.44887171,140.25,140.21,8.31874694]
[1745309666026,15.44887171,140.25,140.2,34.16406207]
[1745309667332,15.44887171,140.25,140.2,25.84531513]
[1745309667635,15.44887171,140.25,140.2,34.16406207]
[1745309667815,7.13012477,140.25,140.2,34.16406207]
[1745309668176,7.12986024,140.26,140.23,8.31874694]
[1745309668438,9.96514694,140.28,140.24,8.31874694]
[1745309668645,17.09398566,140.28,140.24,8.31874694]
[1745309668936,0.03,140.28,140.27,8.31874694]
[1745309670521,0.03,140.28,140.25,8.31874694]
[1745309670827,0.03,140.28,140.24,8.31874694]
[1745309671009,0.03,140.28,140.25,42.77]
[1745309671216,8.34874694,140.28,140.25,42.77]
[1745309672246,0.03,140.28,140.25,51.08874694]
[1745309673521,0.03,140.28,140.25,58.21881458]
[1745309673853,0.03,140.28,140.25,51.08874694]
[1745309674026,0.03,140.28,140.25,58.21878323]
[1745309674525,0.03,140.28,140.25,51.08874694]
[1745309674721,0.03,140.28,140.25,42.77]
[1745309674949,8.31874694,140.27,140.22,108.53]
[1745309675153,8.31874694,140.27,140.22,90.84874694]
[1745309675351,8.31874694,140.26,140.22,82.53]
[1745309676439,7.13012477,140.25,140.22,82.53]
[1745309676638,7.13012477,140.25,140.21,52.9683958]
[1745309677152,8.31874694,140.24,140.2,42.833]
[1745309677361,8.31874694,140.22,140.2,0.063]
[1745309678544,15.45090077,140.22,140.2,0.063]
[1745309680053,8.31874694,140.21,140.2,0.063]
[1745309680763,15.45090584,140.21,140.2,0.063]
[1745309688554,7.1321589,140.21,140.2,0.063]
[1745309688860,15.45090584,140.21,140.2,0.063]
[1745309692460,7.1321589,140.21,140.2,0.063]
[1745309692668,15.45090584,140.21,140.2,0.063]
[1745309697371,7.1321589,140.21,140.2,0.063]
[1745309697879,15.45090584,140.21,140.2,0.063]
[1745309699071,7.1321589,140.21,140.2,0.063]
[1745309700471,15.45058471,140.22,140.2,0.063]
[1745309700840,15.45013664,140.23,140.2,0.063]
[1745309701252,7.1313897,140.23,140.2,0.063]
[1745309701459,7.1313897,140.23,140.2,8.38174694]
[1745309701768,7.1313897,140.23,140.2,0.063]
[1745309701938,32.78959589,140.24,140.2,0.063]
[1745309702145,15.44959589,140.24,140.2,8.38174694]
[1745309702451,7.13031663,140.25,140.21,8.31874694]
[1745309703169,15.44906357,140.25,140.21,8.31874694]
[1745309703353,15.44906357,140.25,140.2,15.51420353]
[1745309703970,15.44906357,140.25,140.2,8.38174694]
[1745309704151,8.31874694,140.24,140.2,8.38174694]
[1745309704353,8.31874694,140.24,140.2,0.063]
[1745309704664,7.13114169,140.23,140.2,0.063]
[1745309706677,7.13085967,140.24,140.2,51.15174694]
[1745309707366,15.44836336,140.26,140.21,8.31874694]
[1745309707871,15.44836336,140.26,140.2,42.833]
[1745309708184,8.31874694,140.25,140.21,8.31874694]
[1745309708374,7.1306332,140.24,140.21,8.31874694]
[1745309708850,15.44909515,140.25,140.21,8.31874694]
[1745309709576,7.13034821,140.25,140.21,15.45088609]
[1745309709771,7.12910814,140.27,140.22,8.31874694]
[1745309710076,15.44785508,140.27,140.22,8.31874694]
[1745309712179,8.31874694,140.26,140.22,8.31874694]
[1745309712378,8.31874694,140.26,140.2,49.96550407]
[1745309712379,15.44879359,140.26,140.21,61.41964886]
[1745309712583,7.13004665,140.26,140.22,8.31874694]
[1745309713253,7.13004665,140.26,140.23,8.31874694]
[1745309713456,25.64874694,140.28,140.24,8.31874694]
[1745309713457,7.12918878,140.27,140.24,8.31874694]
[1745309713948,7.15877103,140.28,140.25,8.31874694]
[1745309714148,7.15860189,140.28,140.25,8.31874694]
[1745309716874,0.03,140.28,140.26,42.77]
[1745309718383,0.03,140.28,140.26,51.08874694]
[1745309718758,0.03,140.28,140.26,42.77]
[1745309718958,0.03,140.28,140.26,8.31874694]
[1745309719272,0.03,140.28,140.25,51.08874694]
[1745309721579,0.03,140.28,140.25,42.77]
[1745309721781,8.34874694,140.28,140.23,68.77]
[1745309722077,8.31874694,140.27,140.23,77.08874694]
[1745309723387,7.12961642,140.26,140.23,77.08874694]
[1745309723554,7.12961642,140.26,140.23,42.77]
[1745309723761,15.44836336,140.26,140.22,90.84874694]
[1745309724184,15.44836336,140.26,140.22,82.53]
[1745309724660,15.44836336,140.26,140.21,8.31874694]
[1745309725060,7.12961642,140.26,140.22,8.31874694]
[1745309725367,7.12961642,140.26,140.23,8.31874694]
[1745309725558,7.12934986,140.27,140.24,8.31874694]
[1745309725758,7.12934986,140.27,140.25,8.31874694]
[1745309725984,7.12934986,140.27,140.24,8.31874694]
[1745309728659,7.15863017,140.28,140.25,8.31874694]
[1745309729485,7.15863017,140.28,140.24,8.31874694]
[1745309731489,7.15863017,140.28,140.22,26.0]
[1745309731695,15.47737711,140.28,140.23,8.31874694]
[1745309731866,15.47737711,140.28,140.24,8.31874694]
[1745309732067,7.15863017,140.28,140.24,8.31874694]
[1745309732899,0.03,140.28,140.24,8.31874694]
[1745309733261,0.03,140.28,140.25,8.31874694]
[1745309733776,0.03,140.28,140.24,18.64964886]
[1745309733968,0.03,140.28,140.25,8.31874694]
[1745309734287,0.03,140.28,140.24,26.9683958]
[1745309735082,0.03,140.28,140.25,8.31874694]
[1745309735670,0.03,140.28,140.24,18.64964886]
[1745309735870,0.03,140.28,140.25,8.31874694]
[1745309738092,0.03,140.28,140.24,26.9683958]
[1745309739478,0.03,140.28,140.27,8.31874694]
[1745309740277,0.03,140.28,140.26,26.9683958]
[1745309740673,0.03,140.28,140.25,51.08874694]
[1745309740874,0.03,140.28,140.25,42.77]
[1745309741289,0.03,140.28,140.25,51.08874694]
[1745309741589,0.03,140.28,140.25,8.31874694]
[1745309742171,0.03,140.28,140.24,51.08874694]
[1745309742475,8.34874694,140.28,140.24,51.08874694]
[1745309743295,0.03,140.28,140.24,51.08874694]
[1745309744892,0.03,140.28,140.24,42.77]
[1745309745095,8.34874694,140.28,140.24,51.08874694]
[1745309745394,0.03,140.28,140.25,8.31874694]
[1745309745699,0.03,140.28,140.25,15.44877245]
[1745309746384,0.03,140.28,140.26,26.9683958]
[1745309746696,0.03,140.28,140.25,49.90002551]
[1745309746697,0.03,140.28,140.25,42.77]
[1745309746882,8.34874694,140.28,140.25,42.77]
[1745309747081,8.31874694,140.27,140.23,18.64964886]
[1745309747287,8.34874694,140.28,140.23,34.09943666]
[1745309747690,15.47781057,140.28,140.23,34.09943666]
[1745309747971,15.47781057,140.28,140.24,8.31874694]
[1745309748596,0.03,140.28,140.25,18.64964886]
[1745309748772,0.03,140.28,140.25,26.9683958]
[1745309749094,0.03,140.28,140.25,18.64964886]
[1745309749398,0.03,140.28,140.25,26.9683958]
[1745309749699,0.03,140.28,140.25,34.09844955]
[1745309750370,0.03,140.28,140.26,8.31874694]
[1745309750794,0.03,140.28,140.25,68.54970261]
[1745309751100,0.03,140.28,140.25,69.7383958]
[1745309751284,0.03,140.28,140.25,76.8683908]
[1745309752600,0.03,140.28,140.26,8.31874694]
[1745309753389,0.03,140.28,140.26,15.44826397]
[1745309756808,0.03,140.28,140.26,7.12951703]
[1745309756982,0.03,140.28,140.27,42.77]
[1745309757704,0.03,140.28,140.27,51.08874694]
[1745309758901,0.03,140.28,140.27,76.86750394]
[1745309763010,0.03,140.28,140.27,102.86750394]
[1745309770506,0.03,140.3,140.28,61.41964886]
[1745309770819,0.03,140.3,140.29,95.7383958]
[1745309772216,0.03,140.3,140.29,102.8664876]
[1745309774418,0.03,140.3,140.29,185.3964876]
[1745309776112,0.03,140.34,140.33,18.64964886]
[1745309776297,0.03,140.34,140.33,26.9683958]
[1745309777325,0.03,140.34,140.33,34.0944558]
[1745309779119,0.03,140.34,140.33,8.31874694]
[1745309781212,0.03,140.34,140.33,51.08874694]
[1745309781402,0.03,140.34,140.33,69.7383958]
[1745309781603,0.03,140.34,140.33,76.8644558]
[1745309782913,0.03,140.34,140.33,69.7383958]
[1745309783108,0.03,140.34,140.3,7.12758374]
[1745309783315,0.03,140.34,140.33,8.31874694]
[1745309788435,0.03,140.34,140.3,8.31874694]
[1745309789139,7.15555223,140.34,140.3,8.31874694]
[1745309790717,7.15555223,140.34,140.3,15.44623515]
[1745309791433,7.15555223,140.34,140.31,8.31874694]
[1745309791937,0.03,140.34,140.31,8.31874694]
[1745309792132,0.03,140.34,140.33,18.64964886]
[1745309792834,0.03,140.34,140.33,26.9683958]
[1745309794730,0.03,140.34,140.32,42.74]
[1745309794934,0.03,140.34,140.32,51.05874694]
[1745309795924,0.03,140.34,140.32,42.74]
[1745309797134,0.03,140.34,140.32,51.05874694]
[1745309798817,0.03,140.34,140.33,8.31874694]
[1745309800652,0.03,140.34,140.33,69.7083958]
[1745309801244,0.03,140.34,140.33,76.8344558]
[1745309801843,0.03,140.34,140.33,69.7083958]
[1745309803446,0.03,140.34,140.33,61.38964886]
[1745309804144,0.03,140.34,140.33,42.74]
[1745309804947,0.03,140.34,140.33,69.7083958]
[1745309806051,0.03,140.34,140.33,76.8344558]
[1745309809158,0.03,140.35,140.34,61.38964886]
[1745309809360,135.0,140.37,140.36,87.38964886]
[1745309809651,44.72315299,140.37,140.36,189.04654479]
[1745309809838,44.72315299,140.37,140.36,210.41654479]
[1745309810028,44.72315299,140.37,140.36,202.09779785]
[1745309810228,44.72315299,140.37,140.36,178.2383958]
[1745309810425,44.72315299,140.37,140.36,125.27]
[1745309810643,44.72315299,140.37,140.36,152.2383958]
[1745309811134,44.72315299,140.37,140.36,185.3629327]
[1745309811333,44.72315299,140.37,140.36,159.3629327]
[1745309811553,44.72315299,140.37,140.36,185.3629327]
[1745309821759,44.72315299,140.37,140.36,159.3629327]
[1745309822950,0.03,140.41,140.39,68.74]
[1745309823150,0.03,140.41,140.39,84.18176139]
[1745309824256,0.03,140.41,140.39,75.86301445]
[1745309824441,0.03,140.41,140.39,84.18176139]
[1745309826263,0.03,140.41,140.39,102.83141025]
[1745309827041,0.03,140.41,140.4,61.38964886]
[1745309827259,0.03,140.41,140.4,185.51338356]
[1745309827456,0.03,140.41,140.4,178.2383958]
[1745309828170,0.03,140.41,140.39,42.74]
[1745309828333,0.03,140.41,140.4,8.31874694]
[1745309829344,0.03,140.41,140.4,69.7083958]
[1745309830359,0.03,140.41,140.4,76.83090292]
[1745309831156,0.03,140.41,140.4,110.10589068]
[1745309831340,0.03,140.41,140.4,192.63589068]
[1745309832859,0.03,140.43,140.42,87.38964886]
[1745309833071,0.03,140.43,140.42,178.2383958]
[1745309833371,0.03,140.43,140.42,195.3583958]
[1745309833758,0.03,140.43,140.42,202.47988846]
[1745309835958,0.03,140.43,140.42,159.73988846]
[1745309837269,0.03,140.43,140.42,151.42114152]
[1745309837473,0.03,140.43,140.42,159.73988846]
[1745309838341,0.03,140.43,140.42,151.42114152]
[1745309838548,0.03,140.43,140.42,159.73988846]
[1745309841059,0.03,140.43,140.42,133.73988846]
[1745309841248,0.03,140.47,140.46,44.64964886]
[1745309841453,0.03,140.47,140.46,135.4983958]
[1745309842551,0.03,140.52,140.46,216.73721186]
[1745309842755,0.03,140.52,140.51,26.9683958]
[1745309842952,0.03,140.52,140.51,133.85532697]
[1745309843664,0.03,140.52,140.51,126.7383958]
[1745309843966,0.03,140.52,140.51,118.41964886]
[1745309844147,0.03,140.52,140.51,101.17964886]
[1745309844851,0.03,140.52,140.51,109.4983958]
[1745309845056,0.03,140.52,140.51,82.53]
[1745309845869,0.03,140.52,140.49,18.64964886]
[1745309846170,0.03,140.52,140.5,42.74]
[1745309847662,12.98368337,140.52,140.49,42.74]
[1745309847873,0.03,140.52,140.49,42.74]
[1745309849264,7.1464247,140.52,140.49,42.74]
[1745309849658,20.10010807,140.52,140.49,42.74]
[1745309849871,20.10010807,140.52,140.48,42.74]
[1745309850055,12.95368337,140.51,140.48,42.74]
[1745309850365,12.95368337,140.5,140.48,42.74]
[1745309850776,12.95368337,140.5,140.47,42.74]
[1745309850950,14.58098337,140.51,140.46,12.95368337]
[1745309851148,12.95368337,140.49,140.45,18.64964886]
[1745309851366,7.11845102,140.48,140.45,31.60333223]
[1745309852070,12.95368337,140.47,140.43,101.17964886]
[1745309852278,12.95368337,140.46,140.41,18.64964886]
[1745309852451,12.95368337,140.46,140.41,31.60333223]
[1745309852969,12.95368337,140.46,140.41,57.60333223]
[1745309853171,12.95368337,140.46,140.42,12.95368337]
[1745309853373,24.91103202,140.5,140.43,18.64964886]
[1745309853675,12.95368337,140.48,140.42,18.64964886]
[1745309853871,12.95368337,140.47,140.42,31.60333223]
[1745309854071,12.95368337,140.47,140.42,18.64964886]
[1745309854270,12.95368337,140.47,140.42,31.60333223]
[1745309854577,24.91103202,140.5,140.41,12.95368337]
[1745309854578,12.95368337,140.45,140.41,12.95368337]
[1745309854870,12.95368337,140.47,140.42,12.95368337]
[1745309855370,7.11895778,140.47,140.43,12.95368337]
[1745309855953,7.11895778,140.47,140.42,7.12118759]
[1745309856367,7.11895778,140.47,140.43,12.95368337]
[1745309856773,20.07264115,140.47,140.43,12.95368337]
[1745309857168,7.11794433,140.49,140.44,31.60333223]
[1745309857374,20.0716277,140.49,140.44,31.60333223]
[1745309857675,12.95368337,140.48,140.44,31.60333223]
[1745309857872,12.95368337,140.48,140.43,12.95368337]
[1745309858468,12.95368337,140.48,140.42,7.12146147]
[1745309858469,12.95368337,140.47,140.41,18.64964886]
[1745309858682,12.95368337,140.46,140.41,31.60333223]
[1745309858866,12.95368337,140.47,140.42,12.95368337]
[1745309860179,7.11946461,140.46,140.43,12.95368337]
[1745309860365,20.07262247,140.48,140.43,12.95368337]
[1745309860564,7.1189391,140.48,140.44,12.95368337]
[1745309860863,20.07112109,140.5,140.45,31.60333223]
[1745309861076,12.95368337,140.48,140.45,18.64964886]
[1745309861470,20.07112109,140.5,140.45,74.34333223]
[1745309864194,12.95368337,140.49,140.45,61.38964886]
[1745309865795,12.95368337,140.46,140.36,5.64071765]
[1745309866089,12.95368337,140.39,140.35,0.063]
[1745309866293,12.95368337,140.39,140.35,7.18776534]
[1745309866470,20.07644903,140.4,140.36,18.64964886]
[1745309866786,7.12276566,140.4,140.36,18.64964886]
[1745309866995,7.12276566,140.4,140.35,13.01668337]
[1745309867201,7.12149266,140.42,140.36,12.95368337]
[1745309867385,8.30636966,140.41,140.36,8.30636966]
[1745309867772,6.0574,140.41,140.35,0.063]
[1745309868074,8.30636966,140.37,140.35,0.063]
[1745309868388,15.43090656,140.36,140.35,0.063]
[1745309869394,20.11384441,140.36,140.35,0.063]
[1745309869593,7.1245369,140.36,140.35,0.063]
[1745309869895,20.11384441,140.36,140.35,0.063]
[1745309870072,7.1245369,140.36,140.35,0.063]
[1745309871297,20.11384441,140.36,140.35,0.063]
[1745309871474,7.12421572,140.37,140.35,0.063]
[1745309872285,7.12339574,140.39,140.36,12.98930751]
[1745309872487,7.12339574,140.39,140.37,12.98930751]
[1745309872686,12.98930751,140.42,140.35,0.063]
[1745309872998,12.98930751,140.42,140.37,12.98930751]
[1745309873200,7.12098554,140.43,140.39,12.98930751]
[1745309873394,7.12098554,140.43,140.37,18.64964886]
[1745309873590,7.12098554,140.43,140.39,12.98930751]
[1745309875075,25.06027675,140.45,140.41,12.98930751]
[1745309875281,25.06027675,140.45,140.42,12.98930751]
[1745309875482,25.06027675,140.45,140.4,18.64964886]
[1745309875793,25.06027675,140.45,140.41,12.98930751]
[1745309875990,38.04958426,140.45,140.41,12.98930751]
[1745309876187,25.06027675,140.45,140.42,12.98930751]
[1745309876385,7.11946461,140.46,140.42,12.98930751]
[1745309876581,20.10877212,140.46,140.41,12.98930751]
[1745309877382,7.11946461,140.46,140.42,18.64964886]
[1745309877701,7.11946461,140.46,140.42,12.98930751]
[1745309878073,1.5541,140.48,140.43,12.98930751]
[1745309878280,21.66208332,140.48,140.41,68.51139776]
[1745309878496,21.66208332,140.48,140.43,12.98930751]
[1745309878799,12.98930751,140.47,140.42,12.98930751]
[1745309879189,12.98930751,140.47,140.41,61.38964886]
[1745309879495,12.98930751,140.47,140.42,12.98930751]
[1745309880281,8.67277581,140.48,140.41,18.64964886]
[1745309880282,12.98930751,140.45,140.41,18.64964886]
[1745309880598,7.12047849,140.44,140.41,31.63895637]
[1745309880791,7.12047849,140.44,140.41,18.64964886]
[1745309880986,20.109786,140.44,140.39,81.72930751]
[1745309881191,12.98930751,140.43,140.38,12.98930751]
[1745309881379,20.109786,140.44,140.39,12.98930751]
[1745309881584,7.12047849,140.44,140.4,12.98930751]
[1745309882497,20.109786,140.44,140.39,12.98930751]
[1745309883097,12.98930751,140.43,140.37,42.74]
[1745309883298,12.98930751,140.43,140.38,31.63895637]
[1745309883798,12.98930751,140.42,140.37,55.72930751]
[1745309883994,24.92167473,140.44,140.37,42.74]
[1745309883995,12.98930751,140.41,140.37,42.74]
[1745309884319,12.98930751,140.38,140.35,0.063]
[1745309884493,12.98930751,140.36,140.35,0.063]
[1745309886403,20.11384441,140.36,140.35,0.063]
[1745309886707,26.72474441,140.36,140.35,0.063]
[1745309886899,81.74887119,140.36,140.3,0.063]
[1745309887198,68.75956368,140.36,140.3,0.063]
[1745309887410,12.98930751,140.31,140.3,0.063]
[1745309888186,68.75956368,140.36,140.3,0.063]
[1745309888482,20.11638327,140.31,140.3,0.063]
[1745309888696,7.12707576,140.31,140.3,0.063]
[1745309889599,7.12555223,140.34,140.3,0.063]
[1745309889799,7.12555223,140.34,140.3,13.05230751]
[1745309890310,20.11485974,140.34,140.3,13.05230751]
[1745309890503,12.98930751,140.33,140.3,0.063]
[1745309890704,12.98930751,140.31,140.3,0.063]
[1745309892183,24.93884077,140.35,140.3,0.063]
[1745309892409,12.98930751,140.33,140.3,0.063]
[1745309892912,20.11583453,140.33,140.3,0.063]
[1745309893112,12.98930751,140.32,140.3,0.063]
[1745309895114,20.11638327,140.31,140.3,0.063]
[1745309898612,47.73038327,140.31,140.3,1e-08]
[1745309904917,66.38003213,140.31,140.3,1e-08]
[1745309905118,6.5565,140.3,140.29,0.063]
[1745309905412,19.54580751,140.3,140.29,0.063]
[1745309906394,26.67339125,140.3,140.29,0.063]
[1745309909212,109.67339125,140.3,140.29,0.063]
[1745309913924,128.32304011,140.3,140.28,0.063]
[1745309914103,38.98930751,140.27,140.26,0.063]
[1745309914506,46.11841565,140.27,140.26,0.063]
[1745309914723,78.75737202,140.27,140.24,0.063]
[1745309915032,27.60601502,140.25,140.21,0.063]
[1745309915333,12.98930751,140.22,140.21,0.063]
[1745309916515,20.12095777,140.22,140.21,0.063]
[1745309920015,7.13165026,140.22,140.21,0.063]
[1745309920220,7.13130813,140.23,140.21,0.063]
[1745309920821,12.98930751,140.22,140.21,0.063]
[1745309921022,7.13130813,140.23,140.21,0.063]
[1745309921222,12.98930751,140.22,140.21,0.063]
[1745309921629,20.12061564,140.23,140.21,0.063]
[1745309921934,7.13130813,140.23,140.21,0.063]
[1745309922113,20.12061564,140.23,140.21,0.063]
[1745309925236,12.98930751,140.22,140.21,0.063]
[1745309927536,20.12095777,140.22,140.21,0.063]
[1745309933517,7.13165026,140.22,140.21,0.063]
[1745309933724,20.12095777,140.22,140.21,0.063]
[1745309936048,21.12095777,140.22,140.2,0.063]
[1745309936232,38.98930751,140.21,140.2,0.063]
[1745309937954,46.12146641,140.21,140.2,0.063]
[1745309938843,46.12146641,140.21,140.19,0.063]
[1745309939015,12.98930751,140.2,140.19,0.063]
[1745309940630,20.12197512,140.2,140.19,0.063]
[1745309941653,121.77162398,140.2,140.18,0.063]
[1745309941847,38.98930751,140.18,140.17,0.063]
[1745309943449,26.0,140.15,140.14,0.063]
[1745309943634,38.98930751,140.15,140.12,0.063]
[1745309943840,38.98930751,140.13,140.11,0.063]
[1745309944037,12.98930751,140.12,140.11,0.063]
[1745309944940,12.98930751,140.12,140.1,0.063]
[1745309945140,57.63895637,140.11,140.09,0.063]
[1745309945449,57.63895637,140.11,140.08,0.063]
[1745309945450,33.11637376,140.1,140.08,0.063]
[1745309945621,51.97861502,140.08,140.07,0.063]
[1745309945827,51.97861502,140.08,140.05,0.063]
[1745309946036,12.98930751,140.07,140.05,0.063]
[1745309947564,20.128595,140.07,140.05,0.063]
[1745309949049,46.128595,140.07,140.05,0.063]
[1745309952354,33.13928749,140.07,140.05,0.063]
[1745309952566,46.128595,140.07,140.05,0.063]
[1745309953542,20.128595,140.07,140.05,0.063]
[1745309957559,20.128595,140.07,140.0,0.063]
[1745309957560,26.0,140.06,140.0,0.063]
[1745309957740,12.98930751,140.01,140.0,0.063]
[1745309959167,25.97861502,140.01,140.0,0.063]
[1745309959350,20.13165448,140.01,140.0,0.063]
[1745309962133,131.33821315,140.01,139.93,7.6748]
[1745309962338,12.98930751,139.95,139.93,7.6748]
[1745309962546,12.98930751,139.94,139.93,7.6748]
[1745309962969,12.98930751,139.94,139.91,0.063]
[1745309963171,18.64964886,139.97,139.91,0.063]
[1745309963470,20.13624861,139.92,139.91,0.063]
[1745309965273,7.14657421,139.93,139.91,0.063]
[1745309966073,20.13588172,139.93,139.91,0.063]
[1745309968677,7.14657421,139.93,139.91,0.063]
[1745309968891,12.98930751,139.92,139.91,0.063]
[1745309969048,7.14657421,139.93,139.91,0.063]
[1745309969249,20.13588172,139.93,139.91,0.063]
[1745309970861,12.98930751,139.92,139.91,0.063]
[1745309971378,25.97861502,139.92,139.91,0.063]
[1745309972253,51.97861502,139.92,139.91,0.063]
[1745309972453,12.98930751,139.86,139.85,0.063]
[1745309972654,26.0,139.89,139.85,0.063]
[1745309972863,12.98930751,139.86,139.85,0.063]
[1745309974949,20.13931466,139.86,139.85,0.063]
[1745309975673,46.13931466,139.86,139.85,0.063]
[1745309980882,46.13931466,139.86,139.85,0.063]
[1745309981886,17.48,139.9,139.85,0.063]
[1745309982059,12.98930751,139.87,139.85,0.063]
[1745309982661,20.13778131,139.89,139.85,0.063]
[1745309982871,20.13749104,139.9,139.85,13.05230751]
[1745309983064,20.13749104,139.9,139.85,0.063]
[1745309983271,12.98930751,139.89,139.85,0.063]
[1745309983481,12.98930751,139.89,139.85,13.05230751]
[1745309983675,12.98930751,139.9,139.85,20.2027352]
[1745309984064,12.98930751,139.9,139.86,12.98930751]
[1745309984264,12.98930751,139.9,139.85,20.2027352]
[1745309985189,12.98930751,139.9,139.85,13.05230751]
[1745309985190,20.1374794,139.9,139.85,13.05230751]
[1745309985778,20.1374794,139.9,139.85,0.063]
[1745309985980,20.1374794,139.9,139.85,20.20277424]
[1745309986186,20.1374794,139.9,139.85,0.063]
[1745309986378,20.1374794,139.9,139.85,13.05230751]
[1745309986695,20.1374794,139.9,139.85,20.20262685]
[1745309986895,12.98930751,139.9,139.85,20.20262685]
[1745309987189,20.13729664,139.9,139.85,20.20262685]
[1745309987389,12.98930751,139.91,139.86,31.63895637]
[1745309988596,20.13676509,139.91,139.86,7.14995506]
[1745309988770,20.13676509,139.91,139.86,20.13926257]
[1745309989775,20.13676509,139.91,139.85,0.063]
[1745309989974,20.13676509,139.91,139.86,12.98930751]
[1745309990596,7.14717587,139.92,139.85,0.063]
[1745309990777,20.13648338,139.92,139.85,0.063]
[1745309991094,12.98930751,139.92,139.87,12.98930751]
[1745309991280,12.98930751,139.91,139.86,12.98930751]
[1745309992181,20.13694389,139.91,139.86,20.13918737]
[1745309992378,20.13694389,139.91,139.87,18.64964886]
[1745309993792,20.13694389,139.91,139.86,12.98930751]
[1745309994009,12.98930751,139.88,139.85,0.063]
[1745309994796,12.98930751,139.87,139.85,0.063]
[1745309994992,12.98930751,139.88,139.85,0.063]
[1745309995899,7.14949596,139.87,139.85,0.063]
[1745309996094,20.13880347,139.87,139.85,0.063]
[1745309996287,7.14949596,139.87,139.85,0.063]
[1745309996791,20.13880347,139.87,139.85,0.063]
[1745309997293,12.98930751,139.86,139.85,0.063]
[1745309997873,20.13931466,139.86,139.85,0.063]
[1745309998274,7.15000715,139.86,139.85,0.063]
[1745309998691,20.13931466,139.86,139.85,0.063]
[1745309999181,7.15000715,139.86,139.85,0.063]
[1745309999387,20.13931466,139.86,139.85,0.063]
[1745310001404,7.15000715,139.86,139.85,0.063]
[1745310001611,20.13931466,139.86,139.85,0.063]
[1745310002105,12.98930751,139.86,139.85,0.063]
[1745310003903,20.13931466,139.86,139.85,0.063]
[1745310004979,38.78896352,139.86,139.85,0.063]
[1745310006603,46.13931466,139.86,139.85,0.063]
[1745310006781,33.15000715,139.86,139.85,0.063]
[1745310006977,20.13931466,139.86,139.85,0.063]
[1745310009305,7.15000715,139.86,139.85,0.063]
[1745310009511,20.13931466,139.86,139.85,0.063]
[1745310010118,7.15000715,139.86,139.85,0.063]
[1745310010303,7.14949596,139.87,139.85,0.063]
[1745310010490,12.98930751,139.86,139.85,0.063]
[1745310010689,7.14949596,139.87,139.85,0.063]
[1745310010989,12.98930751,139.86,139.85,0.063]
[1745310011294,7.14949596,139.87,139.85,0.063]
[1745310011500,12.98930751,139.86,139.85,0.063]
[1745310012388,20.13931466,139.86,139.85,0.063]
[1745310013508,15.52598219,139.86,139.85,0.063]
[1745310015313,20.23807483,139.86,139.85,0.063]
[1745310015901,121.88772369,139.86,139.85,0.063]
[1745310016708,134.97579137,139.86,139.85,0.063]
[1745310017311,121.88772369,139.86,139.85,0.063]
[1745310020010,18.64964886,139.85,139.79,0.063]
[1745310020215,13.08806768,139.8,139.79,0.063]
[1745310021010,20.2411435,139.8,139.79,0.063]
[1745310022926,46.2411435,139.8,139.79,0.063]
[1745310023227,26.0,139.77,139.71,0.063]
[1745310023409,13.08806768,139.73,139.71,0.063]
[1745310023724,13.08806768,139.74,139.71,0.063]
[1745310024411,26.0,139.76,139.71,0.063]
[1745310024614,109.0,139.78,139.71,13.15106768]
[1745310024818,13.08806768,139.76,139.71,13.15106768]
[1745310025221,7.15614713,139.74,139.71,0.063]
[1745310026317,20.24421481,139.74,139.71,0.063]
[1745310026813,13.08806768,139.73,139.71,0.063]
[1745310027227,17.89032549,139.75,139.71,0.063]
[1745310027432,17.88667071,139.77,139.71,13.15106768]
[1745310027609,13.08806768,139.72,139.71,0.063]